Cogmind - Beta 16.1 *** ADVENTURER MODE // 2026.03.26 @ 01:01:23 Player: Tisa Result: Destroyed by G-47 Trooper with Particle Gun Performance ------------- Evolutions (2) 1000 Regions Visited (7) 1400 Robots Destroyed (94) 470 Value Destroyed (2239) 2239 Prototype IDs (1) 20 Alien Tech Used (0) 0 Bonus (0) 0 TOTAL SCORE: 5129 Bonus ------- None Cogmind --------- Core Integrity 0/550 Matter 118/300 Energy 100/100 System Corruption 0% Temperature Cool (9) Movement Core (350) Ox6 Location -8/Materials Parts ------- > --- POWER (1) -------- (None) > --- PROPULSION (4) --- (None) > --- UTILITY (4) ------ Large Storage Unit > --- WEAPON (2) ------- (None) > --- INVENTORY (15) --- Cesium-ion Thruster Large Storage Unit Light Assault Rifle Rocket Launcher Rocket Launcher Datajack Datajack Peak State ------------ > --- POWER ------------ Light Deuterium Engine > --- PROPULSION ------- Light Treads Light Treads Cesium-ion Thruster > --- UTILITY ---------- Large Storage Unit > --- WEAPON ----------- Flak Cannon Flak Cannon > --- INVENTORY -------- Large Storage Unit Light Assault Rifle Rocket Launcher Rocket Launcher Datajack Datajack [Rating: 15] Favorites ----------- Power Light Nuclear Core Engine Ion Engine Power Core Light Nuclear Core Propulsion Light Treads Treads Light Treads Leg Aluminum Leg Wheel Wheel Flight Unit Cesium-ion Thruster Utility Large Storage Unit Storage Large Storage Unit Processor Visual Processing Unit Protection Medium Armor Plating Weapon Light Assault Rifle Energy Gun Medium Laser Ballistic Gun Light Assault Rifle Ballistic Cannon Flak Cannon Launcher Rocket Launcher Special Melee Weapon Datajack Build | -11 -10 -10 -9 -9 -9 -8 -8 ------- Run | Yrd Mat Min Mat Min Exi Min Mat Slots Evolved 4 | . . . 2 . . . 2 Power . | . . . . . . . . Propulsion 2 | . . . 1 . . . 1 Utility 2 | . . . 1 . . . 1 Weapon . | . . . . . . . . Parts Attached 46 | 6 7 . 26 . 1 6 . Power 9 | 1 2 . 4 . . 2 . Engine 6 | 1 1 . 2 . . 2 . Core 3 | . 1 . 2 . . . . Reactor . | . . . . . . . . Propulsion 16 | 2 . . 12 . . 2 . Treads 10 | 2 . . 8 . . . . Leg 4 | . . . 4 . . . . Wheel 1 | . . . . . . 1 . Hover . | . . . . . . . . Flight 1 | . . . . . . 1 . Utility 7 | 1 4 . 2 . . . . Device . | . . . . . . . . Storage 4 | 1 3 . . . . . . Processor 1 | . 1 . . . . . . Hackware . | . . . . . . . . Protection 2 | . . . 2 . . . . Artifact . | . . . . . . . . Weapon 14 | 2 1 . 8 . 1 2 . Energy Gun 4 | 1 . . 3 . . . . Energy Cannon . | . . . . . . . . Ballistic Gun 5 | 1 1 . 3 . . . . Ballistic Cannon 2 | . . . . . . 2 . Launcher 2 | . . . 2 . . . . Special Weapon . | . . . . . . . . Impact Weapon . | . . . . . . . . Slashing Weapon . | . . . . . . . . Piercing Weapon . | . . . . . . . . Special Melee Weapon 1 | . . . . . 1 . . Unidentified Prototypes 1 | . . . 1 . . . . Parts Lost 18 | . . 3 6 . . 4 5 Power 3 | . . 1 1 . . . 1 Propulsion 10 | . . 1 4 . . 3 2 Utility 1 | . . . 1 . . . . Weapon 4 | . . 1 . . . 1 2 Highest Loss Streak 4 | . . 3 3 . . 3 4 To Critical Strikes . | . . . . . . . . Average Backups 6 | 1 2 4 6 9 10 6 7 Power . | . . . . . . . . Propulsion 1 | . . 1 1 3 3 . 1 Utility . | . 1 2 . . . . 1 Weapon 3 | 1 1 1 3 4 5 3 3 Tool/Special . | . . . . . . . . Unused Backups 8 | . . . 3 . 2 2 1 Power 3 | . . . 1 . 2 . . Propulsion 3 | . . . 1 . . 2 . Utility . | . . . . . . . . Weapon 1 | . . . 1 . . . . Tool/Special 1 | . . . . . . . 1 Average Slot Usage (%) 84 | . 89 99 89 100 77 74 36 Engine 4 | . 7 14 2 . . 8 6 Core 3 | . 1 . 7 11 . . . Treads 27 | . 28 27 23 33 33 25 9 Leg 1 | . . . 6 . . . . Storage 19 | . 16 28 19 22 22 15 9 Processor 1 | . 7 . . . . . . Protection 6 | . . . 6 11 11 4 . Energy Gun 2 | . 4 14 6 . . . . Ballistic Gun 10 | . 21 13 15 22 . 1 . Ballistic Cannon 3 | . . . . . . 20 11 Special Melee Weapon 2 | . . . . . 10 . . Peak Build Rating 15 | 6 10 7 14 14 14 15 13 Average Rating 10 | 4 7 6 11 14 9 12 9 On Entrance 8 | . 6 7 4 14 14 9 13 Avg Prop Armor Cover (%) 12 | . . . 12 . . . . Naked Turns . | . . . . . . . . Heaviest Build 62 | 14 33 33 56 56 56 62 37 Greatest Support 60 | 40 40 40 60 60 60 60 40 Greatest Overweight (x) 11 | . . 1 11 . . 2 1 Average Overweight (x) . | . . . . . . . . Largest Inventory Capacity 25 | 8 25 15 15 15 15 15 15 Average Capacity 13 | 6 9 15 13 15 15 15 15 Most Carried 12 | 5 5 5 9 9 12 10 7 Average Carried 6 | 1 2 4 6 9 10 6 7 Final Capacity 15 | 8 15 15 15 15 15 15 15 Final Carried 10 | 1 4 5 9 9 10 7 7 Class Distribution -------------------- 57% | Scavenger-Mutant 42% | Mutant Dominant Class ---------------- Mutant | -10/Materials Mutant | -10/Mines Scavenger-Mutant | -9/Materials Scavenger-Mutant | -9/Mines Scavenger-Mutant | -9/Exiles Mutant | -8/Mines Mutant | -8/Materials Resources | -11 -10 -10 -9 -9 -9 -8 -8 ----------- Run | Yrd Mat Min Mat Min Exi Min Mat Matter Collected 1501 | 266 209 44 621 107 . 254 . Remotely . | . . . . . . . . Salvage Created 2736 | 96 461 156 1585 216 . 222 . Parts 209 | 1 38 11 112 21 . 26 . Haulers Intercepted 1 | . 1 . . . . . . Recyclers Shooed 1 | . 1 . . . . . . Parts Field Recycled . | . . . . . . . . Retrieved Matter . | . . . . . . . . Parts Self-Destructed . | . . . . . . . . Prevented . | . . . . . . . . Parts Restored . | . . . . . . . . Kills | -11 -10 -10 -9 -9 -9 -8 -8 ------- Run | Yrd Mat Min Mat Min Exi Min Mat Combat Hostiles Destroyed 74 | . 11 3 36 9 . 15 . Guns 56 | . 11 3 32 9 . 1 . Cannons 14 | . . . . . . 14 . AOE 4 | . . . 4 . . . . Classes Destroyed 10 | 1 5 . 4 . . . . Worker 7 | . 2 1 . . . 4 . Hauler 1 | . 1 . . . . . . Recycler 1 | 1 . . . . . . . Operator 4 | . . . 4 . . . . Watcher 7 | . 3 . 4 . . . . Swarmer 29 | . 6 . 4 7 . 12 . Grunt 32 | . 5 3 21 1 . 2 . Brawler 1 | . . . 1 . . . . Duelist 3 | . . . 1 1 . 1 . Sentry 9 | . . . 9 . . . . Best Kill Streak 6 | 1 4 1 6 4 . 4 . Combat Bots Only 6 | . 3 1 6 4 . 4 . Max Kills in Single Turn 3 | 1 2 1 3 2 . 1 . Gunslinging 1 | . 1 . 1 1 . . . Exploded 3 | . . . 3 . . . . Melee . | . . . . . . . . Uniques/NPCs Destroyed . | . . . . . . . . Combat | -11 -10 -10 -9 -9 -9 -8 -8 -------- Run | Yrd Mat Min Mat Min Exi Min Mat Hostile Shots Fired 452 | . 49 30 170 29 . 62 112 Missed 114 | . 10 5 46 9 . 10 34 Hits 338 | . 39 25 124 20 . 52 78 Melee 8 | . . . 5 . . 3 . Projectile 330 | . 39 25 119 20 . 49 78 AOE 16 | . . 16 . . . . . Critical Strikes 7 | . . . 6 . . . 1 Actively Blocked 1 | . . . 1 . . . . Damage Taken 3919 | . 324 579 1398 117 . 436 1065 Core 987 | . 32 171 166 13 . 44 561 Absorbed by Shields . | . . . . . . . . Redirected to Shielding 42 | . . . 42 . . . . Ignored by Resistances 1132 | . 99 155 411 41 . 132 294 Regen/Repaired (Parts) 76 | . 35 . 41 . . . . Core Remaining (%) 54 | 100 . 18 . . . 44 . Volleys Fired 227 | 2 49 11 119 15 . 31 . Largest 2 | 2 2 2 2 2 . 2 . Hottest 105 | 70 70 70 105 43 . 74 . Shots Fired 441 | 4 88 22 238 31 . 58 . Gun 390 | 4 88 22 235 31 . 10 . Cannon 48 | . . . . . . 48 . Launcher 3 | . . . 3 . . . . Special . | . . . . . . . . Kinetic 332 | 2 75 11 155 31 . 58 . Thermal 106 | 2 13 11 80 . . . . Explosive 3 | . . . 3 . . . . Electromagnetic . | . . . . . . . . Robot Hit Streak 66 | 4 20 9 66 19 . 28 . Robot Miss Streak 5 | . 2 1 4 1 . 5 . Penetration Max . | . . . . . . . . Secondary Targets 11 | . 5 . 4 2 . . . Max Gunslinging Chain 1 | . 1 . 1 1 . . . Shots Hit Robots 353 | 4 72 17 183 28 . 49 . Core Hits 215 | 2 30 8 113 14 . 48 . Critical Kills . | . . . . . . . . Critical Parts Destroyed 1 | . . . 1 . . . . Critical Strikes 2 | . 1 . 1 . . . . Burn 1 | . 1 . . . . . . Destroy 1 | . . . 1 . . . . Melee Attacks 1 | . . . . . . 1 . Impact . | . . . . . . . . Slashing . | . . . . . . . . Piercing . | . . . . . . . . Sneak Attacks 1 | . . . . . . 1 . Combat Hostiles . | . . . . . . . . Follow-up Attacks . | . . . . . . . . Damage Inflicted 4319 | 52 705 190 2241 316 . 815 . Guns 3369 | 52 705 190 2037 316 . 69 . Cannons 746 | . . . . . . 746 . Explosions 204 | . . . 204 . . . . Melee . | . . . . . . . . Ramming . | . . . . . . . . Kinetic 3105 | 28 567 79 1300 316 . 815 . Thermal 1010 | 24 138 111 737 . . . . Explosive 204 | . . . 204 . . . . Electromagnetic . | . . . . . . . . Impact . | . . . . . . . . Slashing . | . . . . . . . . Piercing . | . . . . . . . . Highest Corruption 2 | . . . 2 2 2 2 . Average Corruption 1 | . . . 1 2 2 2 . Corruption Purged . | . . . . . . . . Corruption Blocked . | . . . . . . . . Effects 54 | . . . . 15 21 18 . Message Errors 14 | . . . . 1 5 8 . Matter Fused 10 | . . . . 4 4 2 . Heat Flow Errors 7 | . . . . 3 3 1 . Energy Discharges 9 | . . . . 4 3 2 . Parts Fused 1 | . . . . . 1 . . Data Loss (minor) 10 | . . . . 2 5 3 . Data Loss (major) 1 | . . . . . . 1 . Misfires 2 | . . . . 1 . 1 . Overload Shots . | . . . . . . . . Overflow Damage . | . . . . . . . . Projectiles . | . . . . . . . . Explosions . | . . . . . . . . Melee . | . . . . . . . . Knockbacks 28 | . . . . . . 28 . Impact . | . . . . . . . . Kinetic 26 | . . . . . . 26 . Secondary 2 | . . . . . . 2 . Self-Inflicted Damage 39 | . . . 39 . . . . Shots 1 | . . . 1 . . . . Rammed . | . . . . . . . . Targets Rammed . | . . . . . . . . Kicked . | . . . . . . . . Crushed . | . . . . . . . . Highest Temperature 481 | 18 40 120 481 140 227 82 2 Average Temperature 71 | 10 12 41 106 29 111 22 2 Received Heat Transfer 1716 | . 147 54 681 6 . 108 720 Effects 3 | . . . 3 . . . . Shutdowns 2 | . . . 2 . . . . Short Circuit 1 | . . . 1 . . . . Siege Activations . | . . . . . . . . Martial Activations . | . . . . . . . . Shielding Activations . | . . . . . . . . Robots Disrupted . | . . . . . . . . Combat Hostiles . | . . . . . . . . Robots Corrupted . | . . . . . . . . Combat Hostiles . | . . . . . . . . Parts Fried . | . . . . . . . . Impact Corruptions . | . . . . . . . . Robots Melted . | . . . . . . . . Combat Hostiles . | . . . . . . . . Parts Melted 2 | 1 . . 1 . . . . Heat Transferred 2128 | 74 481 333 1240 . . . . Parts Sabotaged . | . . . . . . . . Parts Stolen . | . . . . . . . . Parts Stripped . | . . . . . . . . Power Chain Reactions . | . . . . . . . . Alert | -11 -10 -10 -9 -9 -9 -8 -8 ------- Run | Yrd Mat Min Mat Min Exi Min Mat Maximum Alert Level 1 | . . . 1 . . . . Low Security (%) 96 | 100 100 100 90 100 . 100 100 Level 1 3 | . . . 9 . . . . Level 2 . | . . . . . . . . Level 3 . | . . . . . . . . Level 4 . | . . . . . . . . Level 5 . | . . . . . . . . High Security . | . . . . . . . . Max Security . | . . . . . . . . Peak Influence 238 | 5 86 30 238 120 . 110 . Initial . | . . . . . . . . Average 46 | . 16 10 101 28 . 18 . Influence Increases 2117 | 5 330 112 1073 222 . 375 . Destroy 0b10 Robot/C 1480 | . 220 60 720 180 . 300 . Destroy 0b10 Robot/NC 105 | 5 30 5 40 5 . 20 . Destroy Leader 326 | . 48 10 198 30 . 40 . Successful Hack 42 | . 22 7 6 7 . . . Disable Machine 9 | . 9 . . . . . . Destroy Structure 35 | . 1 . 34 . . . . Partial Spotted 15 | . . . . . . 15 . Lose Combat Pursuer 105 | . . 30 75 . . . . Influence Decreases 2117 | 5 330 112 1073 222 . 375 . Time Decay 2032 | 5 330 112 1013 222 . 350 . Lost Part 85 | . . . 60 . . 25 . Squads Dispatched 7 | . 1 1 5 . . . . Investigation 4 | . 1 1 2 . . . . Extermination . | . . . . . . . . Reinforcement 3 | . . . 3 . . . . Assault . | . . . . . . . . Garrison . | . . . . . . . . Intercept . | . . . . . . . . Searches Triggered . | . . . . . . . . Construction Impeded . | . . . . . . . . Haulers Reinforced . | . . . . . . . . Active Scanning Responses . | . . . . . . . . Cargo Convoy Interrupts . | . . . . . . . . Stealth | -11 -10 -10 -9 -9 -9 -8 -8 --------- Run | Yrd Mat Min Mat Min Exi Min Mat Distress Signals 6 | . 1 1 4 . . . . Communications Jammed . | . . . . . . . . Distress Signals . | . . . . . . . . Times Spotted 108 | . 14 7 60 9 . 15 3 Peak Tracking Total 10 | . 3 2 10 4 . 4 3 Tactical Retreats 5 | . . 2 3 . . . . Traps | -11 -10 -10 -9 -9 -9 -8 -8 ------- Run | Yrd Mat Min Mat Min Exi Min Mat Traps Triggered 4 | . 2 . 2 . . . . Indirectly . | . . . . . . . . Trap Hack Attempts . | . . . . . . . . Triggered . | . . . . . . . . Disarmed . | . . . . . . . . Reprogrammed . | . . . . . . . . Reused . | . . . . . . . . Traps Extracted . | . . . . . . . . Installed . | . . . . . . . . Triggered . | . . . . . . . . Machines | -11 -10 -10 -9 -9 -9 -8 -8 ---------- Run | Yrd Mat Min Mat Min Exi Min Mat Machines Disabled 1 | . 1 . . . . . . Max in Single Turn 1 | . 1 . . . . . . Machines Repaired . | . . . . . . . . Machines Dismantled . | . . . . . . . . Machines Sabotaged . | . . . . . . . . Overloaded Fab Kills . | . . . . . . . . Hacking | -11 -10 -10 -9 -9 -9 -8 -8 --------- Run | Yrd Mat Min Mat Min Exi Min Mat Machines Accessed 16 | . 5 1 5 1 4 . . Terminals 8 | . 3 1 3 1 . . . Fabricators . | . . . . . . . . Repair Stations 2 | . 1 . 1 . . . . Recycling Units 1 | . 1 . . . . . . Scanalyzers 1 | . . . 1 . . . . Garrison Access . | . . . . . . . . Total Hacks 35 | . 13 3 13 2 4 . . Successful 24 | . 9 2 8 1 4 . . Failed 11 | . 4 1 5 1 . . . Catastrophic 3 | . 1 1 1 . . . . Database Lockouts . | . . . . . . . . Manual 19 | . 5 2 7 2 3 . . Terminals 18 | . 6 3 7 2 . . . Fabricators . | . . . . . . . . Repair Stations 5 | . 3 . 2 . . . . Recycling Units 4 | . 4 . . . . . . Scanalyzers 4 | . . . 4 . . . . Garrison Access . | . . . . . . . . Terminal Hacks 9 | . 1 2 1 1 4 . . Record 4 | . . . . . 4 . . Branch Access Points 3 | . . 1 1 1 . . . Registered Components 1 | . 1 . . . . . . Zone Layout 1 | . . 1 . . . . . Fabricator Hacks . | . . . . . . . . Repair Station Hacks 4 | . 2 . 2 . . . . Scan Component 2 | . 1 . 1 . . . . Repair 2 | . 1 . 1 . . . . Recycling Unit Hacks 4 | . 4 . . . . . . Process 1 | . 1 . . . . . . Retrieve Components 3 | . 3 . . . . . . Scanalyzer 4 | . . . 4 . . . . Insert Component 1 | . . . 1 . . . . Analyze 1 | . . . 1 . . . . Retrieve Study 2 | . . . 2 . . . . Garrison Access Hacks . | . . . . . . . . Unauthorized Hacks 3 | . 2 . 1 . . . . Terminals 3 | . 2 . 1 . . . . Operators 3 | . 2 . 1 . . . . Fabricators . | . . . . . . . . Repair Stations . | . . . . . . . . Recycling Units . | . . . . . . . . Scanalyzers . | . . . . . . . . Garrison Access . | . . . . . . . . Data Cores Recovered 1 | . . . 1 . . . . Used . | . . . . . . . . Hacking Detections 10 | . 4 1 4 1 . . . Full Trace Events 3 | . . 1 2 . . . . Feedback Events 1 | . . . 1 . . . . Corruption 1 | . . . 1 . . . . Feedback Blocked . | . . . . . . . . Robot Schematics Acquired . | . . . . . . . . Robots Built . | . . . . . . . . Authchips . | . . . . . . . . Time . | . . . . . . . . Total Robot Build Rating . | . . . . . . . . Part Schematics Acquired 1 | . . . 1 . . . . Parts Built . | . . . . . . . . Authchips . | . . . . . . . . Time . | . . . . . . . . Total Part Build Rating . | . . . . . . . . Part Studies Acquired 1 | . . . 1 . . . . Parts Repaired 2 | . 1 . 1 . . . . Time 76 | . 38 . 38 . . . . Parts Recycled . | . . . . . . . . Recycled Matter . | . . . . . . . . Retrieved Matter . | . . . . . . . . Retrieved Components . | . . . . . . . . Parts Scanalyzed 1 | . . . 1 . . . . Part Schematics Acquired 1 | . . . 1 . . . . Parts Damaged . | . . . . . . . . Bothacking | -11 -10 -10 -9 -9 -9 -8 -8 ------------ Run | Yrd Mat Min Mat Min Exi Min Mat Used RIF Installer . | . . . . . . . . Robots Hacked 1 | . . . . . . 1 . Non-combat 1 | . . . . . . 1 . Combat . | . . . . . . . . Robot Hacks Applied 1 | . . . . . . 1 . parse_system 1 | . . . . . . 1 . Relay Couplers Released . | . . . . . . . . Fabnet Peak Effective % . | . . . . . . . . Robots Rewired . | . . . . . . . . Allies Hacked . | . . . . . . . . Hacks Repelled . | . . . . . . . . Allies | -11 -10 -10 -9 -9 -9 -8 -8 -------- Run | Yrd Mat Min Mat Min Exi Min Mat Total Allies . | . . . . . . . . Largest Group . | . . . . . . . . Highest-Rated Group . | . . . . . . . . Highest-Rated Ally . | . . . . . . . . Total Orders . | . . . . . . . . Ally Attacks . | . . . . . . . . Total Damage . | . . . . . . . . Kills . | . . . . . . . . Allies Corrupted . | . . . . . . . . Allies Melted . | . . . . . . . . Intel | -11 -10 -10 -9 -9 -9 -8 -8 ------- Run | Yrd Mat Min Mat Min Exi Min Mat Active Infowar (turns) 818 | . 818 . . . . . . Optics 818 | . 818 . . . . . . Robot Analysis Total . | . . . . . . . . Derelict Logs Recovered 2 | . . . . 2 . . . Drone Launches . | . . . . . . . . Drone Recoveries . | . . . . . . . . Exploration | -11 -10 -10 -9 -9 -9 -8 -8 ------------- Run | Yrd Mat Min Mat Min Exi Min Mat Turns Passed 8855 | 111 1503 291 2403 920 1822 1608 197 Spaces Moved 4613 | 67 808 150 1139 467 1136 797 49 Core 16 | 13 . . 3 . . . . Treads 4343 | 54 808 150 882 467 1136 797 49 Legs 254 | . . . 254 . . . . Wheels . | . . . . . . . . Hover . | . . . . . . . . Flight . | . . . . . . . . Fastest Speed 50 | 50 160 160 120 160 160 160 160 Average Speed 160 | 138 160 162 154 160 160 170 161 Slowest Speed 600 | 160 160 240 600 160 160 320 240 Overloaded Moves . | . . . . . . . . Propulsion Burnouts . | . . . . . . . . Robots Hopped . | . . . . . . . . Potential Cave-ins . | . . . . . . . . Cave-ins Triggered . | . . . . . . . . Exploration Rate (%) 60 | 4 91 25 74 95 92 99 7 Regions Visited 7 Branch Regions 4 Pre-discovered Areas . | . . . . . . . . Known Exits Taken 1 | . . . 1 . . . . Unknown Exits Taken 6 | 1 1 1 . 1 1 1 . Scrap Searched 1 | . . . . . . 1 . Spaces Dug . | . . . . . . . . Terrain Destroyed 40 | . . . 40 . . . . Melee . | . . . . . . . . Projectile . | . . . . . . . . AOE 40 | . . . 40 . . . . Terrain Rammed . | . . . . . . . . Walls Destroyed . | . . . . . . . . Machines Disabled . | . . . . . . . . Actions | -11 -10 -10 -9 -9 -9 -8 -8 --------- Run | Yrd Mat Min Mat Min Exi Min Mat Total 5678 | 81 941 179 1565 612 1142 991 167 Wait 684 | . 56 18 223 130 . 139 118 Move 4606 | 66 807 149 1138 466 1135 796 49 Hop . | . . . . . . . . Pick Up 60 | 7 12 1 33 . 2 5 . Fast Attach . | . . . . . . . . Attach 37 | 6 7 . 17 . . 7 . Detach 5 | . 1 . 1 . 1 2 . Swap 30 | . 4 . 19 1 1 5 . Drop 28 | . 5 . 15 . 3 5 . Fire 227 | 2 49 11 119 15 . 31 . Melee 1 | . . . . . . 1 . Ram . | . . . . . . . . Kick . | . . . . . . . . Crush . | . . . . . . . . Escape Stasis . | . . . . . . . . Rewire . | . . . . . . . . Trap . | . . . . . . . . Miscellaneous . | . . . . . . . . Route ------- -11/Scrapyard -10/Materials (discovered 4 exits: *Mat x3 / *Min) -10/Mines -9/Materials (discovered 3 exits: [*Mat x2] / *Min) -9/Mines (discovered 4 exits: [*Mat x2] / *Exi / [*Zio]) -9/Exiles (discovered 2 exits: [*Min x2]) -8/Mines (discovered 2 exits: [*Mat x2]) -8/Materials History --------- Turn | Location | Event 12 | -11/Scrapyard | Discovered new exit (range 16) 112 | -11/Scrapyard | Entered Materials 303 | -10/Materials | Build established: Mutant 313 | -10/Materials | Discovered new exit (range 9) 516 | -10/Materials | Discovered new exit (range 15) 716 | -10/Materials | Repaired Lgt. Nuclear Core 915 | -10/Materials | Discovered new exit (range 11) 1350 | -10/Materials | Discovered new exit (range 12) 1615 | -10/Materials | Entered Mines 1716 | -10/Mines | Discovered new exit (range 11) 1883 | -10/Mines | Assembled infested the area 1900 | -10/Mines | Core integrity fell below 50% 1904 | -10/Mines | Core integrity fell below 20% 1906 | -10/Mines | Entered Materials 1906 | -9/Materials | Evolved 2 slots: Propulsion x1, Utility x1 1931 | -9/Materials | Lost 3 parts (1p1n1w) 2134 | -9/Materials | Discovered new exit (range 11) 2611 | -9/Materials | Build established: Scavenger-Mutant 2844 | -9/Materials | Lost 3 parts (2n1u) 2946 | -9/Materials | Discovered new exit (range 12) 3174 | -9/Materials | Repaired Lgt. Nuclear Core 3689 | -9/Materials | Discovered new exit (range 16) 4181 | -9/Materials | Identified exit to Mines 4309 | -9/Materials | Entered Mines 4454 | -9/Mines | A Derelict revealed a hidden shortcut to a safe place 4480 | -9/Mines | Discovered new exit (range 15) 4634 | -9/Mines | Learned location of 1 exit from Proximity Caves 4857 | -9/Mines | Discovered new exit (range 11) 5023 | -9/Mines | Learned Materials interactive machine intel 5219 | -9/Mines | Deemed a non-threat by the Exiles lab entrance 5221 | -9/Mines | Discovered new exit (range 5) 5229 | -9/Mines | Entered Exiles 5229 | -9/Exiles | Found Exiles lab abandoned 5283 | -9/Exiles | Discovered new exit (range 14) 5670 | -9/Exiles | Discovered new exit (range 14) 7051 | -9/Exiles | Entered Mines 7092 | -8/Mines | Core integrity fell below 50% 7139 | -8/Mines | Lost 3 parts (2n1w) 7365 | -8/Mines | Discovered new exit (range 10) 7885 | -8/Mines | Build established: Mutant 7932 | -8/Mines | Discovered new exit (range 5) 8659 | -8/Mines | Entered Materials 8659 | -8/Materials | Evolved 2 slots: Propulsion x1, Utility x1 8660 | -8/Materials | Loaded intel: 19 interactive machine locations 8819 | -8/Materials | Core integrity fell below 50% 8822 | -8/Materials | Lost 4 parts (1p1n2w) 8836 | -8/Materials | Core integrity fell below 20% 8856 | -8/Materials | Destroyed by G-47 Trooper with Particle Gun Last Messages --------------- lost. System corrupted: Component data lost. System corrupted: FCS attempts to trigger Flak Cannon. System corrupted: Flak Cannon misfires. K-01 Serf knocked back. K-01 Serf destroyed. Acquired 8 matter. K-01 Serf collects debris. System corrupted: Energy discharge (-50). PARAMETERS=PROPULSION+1,UTILITY+1 LOCATION=UNKNOWN GOAL=ESCAPE Loading Materials interactive machine intel (x19)... Lgt. Treads destroyed. Flak Cannon destroyed. Lgt. Treads destroyed. Critical hit (Burn: +37). Lgt. Deuterium Engine destroyed. Map ----- +----------------------------------------------------+ | | | | | | | | | | | | | | | | | | | | | | | | | | | | | | | | | ?????????????????????????????????????????????????? | | ###??????????????????########????"""?????????????? | | #??????????????????# #????"T"?????????????? | | !#????###########???# T #????????????????????? | | ###### """ """ #???# #????????????????????? | | # ## """ """ #???# #????????????????????? | | # ## """ """ #???# #????????????????????? | | # ## #???# #????????????????????? | | + ## ########/###########????????????? | | # ## + @ g ?????? | | # ## ######## #####+#####????????????? | | ### ## #??????# #??????????????????????? | | ?# ###+#######??????# #??????????????????????? | | ?# #?????????#g#??????????????????????? | | ?# " #?????????# #??????????????????????? | | ?# #?????????# #??????????????????????? | | ?# #### #?????????# #??????????????????????? | | ?#######??? #?????????# #??????????????????????? | | ??????????? #?????????? ???????????????????????? | | ??????????? +?????????? ???????????????????????? | | ??????????? #?????????? ???????????????????????? | | ??????????? #?????????? ???????????????????????? | | ??????????? #??????????+??????????????????""???? | | ??????????? #????????????????"Y"??????????"""??? | | ???????????? #????????????????"""???????????S"??? | | ???????????? #??????????????????????????????????? | | ???????????? #??????????????????????????????????? | | ???????????? #??????????????????????????????????? | | ?????????????????????????????????????????????????? | | ?????????????????????????????????????????????????? | | ?????????????????????????????????????????????????? | | ?????????????????????????????????????????????????? | | ?????????????????????????????????????????????????? | | ?????????????????????????????????????????????????? | +----------------------------------------------------+ Best States ------------- Heat Dissipation 31 Energy Generation 14 Energy Capacity 250 Matter Stores 300 Matter Capacity 300 Sight Range 18 Terrain Scan Density 10 Armor Coverage 225 Resistance: KI 20 Resistance: TH 20 Resistance: EX 20 Resistance: EM 20 Resistance: I 20 Resistance: S 20 Resistance: P 20 Power Shielding 33 Evasion (%) 55 Recoil Reduction 3 Offensive Hacking 10 Item Schematics ----------------- Rocket Launcher | -9/Materials | Scanalyzed Robot Schematics ------------------ None Fabricated ------------ Nothing Repaired ---------- Lgt. Nuclear Core | 30% | -10/Materials Lgt. Nuclear Core | 18% | -9/Materials Studied --------- Rocket Launcher | -9/Materials | Hacked Alien Tech Used ----------------- None Achievements -------------- Bumper Bots Item+ Spot Them First That Tickles Challenges ------------ None Game ------ Seed MetafiberProjectileSource Manual? 0 Play Time 00:51:54 Cumulative 9.3 hours Start 2026.03.25 @ 23:15:41 End 2026.03.26 @ 01:01:23 Sessions 1 Manual Loads 0 Difficulty Adventurer Special Mode None Game No. 15 Rogue 0 Adventurer 15 Explorer 0 Win Type - Total 0 Types 0/0/0/0/0/0/0/0/0/0 Lore% 17 Gallery% 12 Achievement% 11 Wizard Run 0 Options --------- Layout 1 ASCII 0 Keyboard 0 Movement Mouse Keybinds 0 Fullscreen 2 Font 32/SmallcapsGlow Map View 50x35 Zoom Use 0% Tactical HUD 0 Map Filters NONE Filters NONE Steam 1 RUN: 1b6dff36-8d92-4152-8b46-a8e3e3726f8e